bitfinex-derivatives/quotes_ETHF0:USTF0_20240905
["timestamp","ask_amount","ask_price","bid_price","bid_amount"]
[1725565525114,1.06396,2350.1,2348.8,5.8819218]
[1725565525115,3.2078,2349.1,2348.8,5.8819218]
[1725565525316,5.1717,2349.9,2348.8,5.8819218]
[1725565525317,0.00637769,2349.2,2348.8,5.8819218]
[1725565525821,0.00637769,2349.2,2349.1,5.8819218]
[1725565526819,0.00637769,2349.2,2349.1,6.3076718]
[1725565527121,3.2078,2349.7,2349.1,5.8819218]
[1725565527322,5.01549,2350.6,2349.5,5.8819218]
[1725565527323,3.2078,2350.0,2349.5,5.8819218]
[1725565527824,3.2078,2350.0,2349.8,5.8819218]
[1725565528220,3.2078,2350.0,2349.3,3.2078]
[1725565528221,3.2078,2350.0,2349.4,5.63231399]
[1725565528424,3.2078,2350.0,2349.7,5.8819218]
[1725565528925,0.00637769,2350.1,2350.0,0.42559]
[1725565529222,0.00637769,2350.1,2349.2,1.06434]
[1725565529223,6.00637769,2350.1,2349.8,6.27918485]
[1725565529420,0.00637769,2350.1,2349.8,0.6525]
[1725565529617,3.21417769,2350.1,2349.8,0.6525]
[1725565530324,4.2552,2350.0,2348.9,4.56]
[1725565530519,3.2078,2349.8,2349.5,5.8819218]
[1725565530729,4.256,2349.7,2349.0,0.6729]
[1725565531023,3.2078,2349.8,2349.3,5.8819218]
[1725565531219,0.6005,2350.0,2349.5,5.8819218]
[1725565531424,3.2078,2349.6,2349.3,5.8819218]
[1725565532123,3.2078,2349.6,2349.0,0.6729]
[1725565532124,3.2078,2349.6,2349.5,5.8819218]
[1725565532625,3.2078,2349.6,2349.5,6.3076018]
[1725565532930,0.00637769,2350.1,2349.6,0.42565]
[1725565533134,3.2078,2350.0,2349.8,5.8819218]
[1725565534223,3.2078,2350.0,2349.9,5.8819218]
[1725565534425,0.00637769,2350.1,2350.0,0.42559]
[1725565534622,0.00637769,2350.1,2350.0,6.3075118]
[1725565534826,0.00637769,2350.1,2350.0,5.8819218]
[1725565535024,0.00637769,2350.1,2350.0,6.3075118]
[1725565535220,0.00637769,2350.1,2350.0,5.8819218]
[1725565535725,0.00637769,2350.1,2350.0,6.3075118]
[1725565536129,3.2078,2350.7,2350.0,5.8819218]
[1725565536330,3.2078,2350.7,2350.4,5.8819218]
[1725565536726,3.2078,2350.7,2350.2,0.42555]
[1725565536922,3.2078,2350.7,2350.3,5.8819218]
[1725565537128,3.2078,2350.4,2350.3,0.00637769]
[1725565537332,3.21416839,2350.7,2350.3,5.88829949]
[1725565537529,3.21416839,2350.7,2350.3,0.00637769]
[1725565537530,3.2078,2350.4,2350.3,0.00637769]
[1725565538032,3.21416839,2350.7,2350.3,5.88829949]
[1725565538632,3.21416839,2350.7,2350.4,5.8819218]
[1725565538828,3.21416839,2350.7,2350.6,5.8819218]
[1725565539525,0.00636839,2350.7,2350.6,6.3074018]
[1725565539724,0.00636839,2350.7,2350.6,5.8819218]
[1725565539930,13.46856839,2350.7,2350.3,0.00637769]
[1725565540128,3.2078,2350.4,2350.3,0.00637769]
[1725565540530,13.4622,2350.4,2350.3,0.00637769]
[1725565540928,3.2078,2350.5,2350.3,5.88829949]
[1725565541133,3.2078,2350.5,2350.3,0.00637769]
[1725565541433,3.2078,2350.5,2350.3,5.88829949]
[1725565542030,3.2078,2350.5,2350.4,6.3074418]
[1725565542230,1.05974882,2351.5,2350.4,16.50644574]
[1725565542231,3.2078,2351.5,2350.4,16.50644574]
[1725565542431,3.2078,2351.5,2351.3,5.8819218]
[1725565542627,3.2078,2351.5,2350.9,5.8819218]
[1725565542826,6.25674882,2351.9,2350.7,5.8819218]
[1725565542827,3.2078,2351.2,2350.7,5.8819218]
[1725565543030,3.2078,2351.1,2350.7,5.8819218]
[1725565543334,3.2078,2351.1,2351.0,5.8819218]
[1725565543638,3.2078,2351.4,2351.0,5.8819218]
[1725565544035,1.48503882,2351.7,2351.0,5.8819218]
[1725565544036,3.2078,2351.1,2351.0,5.8819218]
[1725565544237,3.2078,2351.5,2351.3,5.8819218]
[1725565544540,3.2078,2351.5,2351.0,0.6604]
[1725565544739,3.2078,2351.5,2351.4,5.8819218]
[1725565546435,3.2078,2351.5,2351.4,6.3072618]
[1725565546633,3.2078,2351.9,2351.5,0.42532]
[1725565546938,3.2078,2351.9,2351.8,5.8819218]
[1725565547237,3.2078,2352.3,2351.8,5.8819218]
[1725565547443,3.2078,2352.3,2351.9,1.81284]
[1725565547632,0.607,2353.1,2352.2,5.8819218]
[1725565547633,3.2078,2352.6,2352.2,5.8819218]
[1725565547833,0.607,2353.1,2351.9,1.3876]
[1725565547834,3.2078,2352.3,2351.9,1.3876]
[1725565548135,3.2078,2352.3,2352.1,5.8819218]
[1725565548737,3.2078,2352.2,2351.9,1.3876]
[1725565548939,3.2078,2352.2,2351.9,7.2695218]
[1725565549244,3.2078,2352.2,2351.5,0.00637769]
[1725565549245,0.42523,2352.0,2351.5,0.00637769]
[1725565549432,3.2078,2351.9,2351.6,5.8819218]
[1725565549930,0.6067,2352.4,2351.5,0.00637769]
[1725565549931,3.2078,2352.1,2351.8,5.8819218]
[1725565550136,3.2078,2352.1,2351.9,5.8819218]
[1725565550531,13.4598,2352.1,2351.5,0.00637769]
[1725565550833,3.2078,2352.1,2351.9,5.8819218]
[1725565551034,3.2078,2352.1,2351.7,5.8819218]
[1725565551233,3.2078,2352.1,2351.9,5.8819218]
[1725565551439,3.2078,2352.1,2352.0,5.8819218]
[1725565551633,3.2078,2352.1,2352.0,6.3071518]
[1725565551934,0.6067,2352.9,2352.0,6.3071518]
[1725565551935,3.2078,2352.6,2352.0,5.8819218]
[1725565552239,3.2078,2352.6,2351.8,3.8634]
[1725565552240,3.2078,2352.6,2352.3,5.8819218]
[1725565553140,3.2078,2352.6,2352.1,0.42521]
[1725565553439,3.2078,2352.6,2352.4,5.8819218]
[1725565553646,3.2078,2352.6,2352.3,5.8819218]
[1725565555134,3.2078,2352.6,2352.4,5.8819218]
[1725565555641,3.63293,2352.6,2351.9,0.42524]
[1725565555842,3.2078,2352.0,2351.9,5.8819218]
[1725565556339,3.2078,2352.4,2351.9,5.8819218]
[1725565556544,3.2078,2352.4,2352.3,5.8819218]
[1725565558635,3.2078,2352.4,2352.3,6.3070918]
[1725565558835,3.2078,2352.4,2352.3,5.8819218]
[1725565559436,3.2078,2352.4,2352.3,6.3070918]
[1725565559642,3.2078,2352.7,2352.4,0.42514]
[1725565559940,3.2078,2352.7,2352.0,0.683]
[1725565560141,0.42503,2353.2,2352.6,5.8819218]
[1725565560338,3.2078,2352.7,2352.5,0.42513]
[1725565560543,3.2078,2352.7,2352.6,5.8819218]
[1725565560843,3.2078,2352.7,2352.6,6.3070418]
[1725565561349,0.6071,2353.7,2352.7,0.4251]
[1725565561350,1.03203,2353.7,2352.7,0.4251]
[1725565561542,1.03203,2353.7,2353.0,3.2078]
[1725565561543,0.6071,2353.7,2353.0,3.2078]
[1725565561735,0.42486,2354.1,2353.1,0.42502]
[1725565562135,0.42486,2354.1,2353.2,0.42501]
[1725565562342,0.42484,2354.2,2353.3,3.2078]
[1725565562546,3.63262,2354.3,2353.4,0.42498]
[1725565562749,3.63262,2354.3,2352.8,1.06272]
[1725565562750,3.2078,2354.3,2353.6,3.21417769]
[1725565562949,3.2078,2354.3,2353.6,0.43131769]
[1725565563246,3.2078,2354.9,2353.8,3.2078]
[1725565563551,3.8999,2354.9,2354.1,3.63264]
[1725565563743,3.8999,2354.9,2354.2,0.42482]
[1725565563940,3.2078,2354.9,2354.1,3.2078]
[1725565564147,3.2078,2354.9,2354.2,0.42483]
[1725565564444,1.11673,2355.4,2354.5,3.2078]
[1725565564648,0.6921,2355.4,2354.5,3.2078]
[1725565564950,0.6921,2355.4,2354.2,6.46375088]
[1725565564951,3.72343507,2355.9,2354.9,0.42471]
[1725565565141,0.51563507,2355.9,2355.2,0.00637769]
[1725565565447,0.51563507,2355.9,2355.2,3.21417769]
[1725565565648,3.2078,2355.6,2355.2,0.00637769]
[1725565565851,3.63239,2355.6,2355.2,0.00637769]
[1725565566045,0.6921,2356.1,2355.2,3.21417769]
[1725565566239,1.91345,2356.8,2355.2,3.21417769]
[1725565566240,3.2078,2356.6,2355.2,3.21417769]
[1725565566442,0.664,2356.2,2355.2,3.21417769]
[1725565566746,1.08848,2356.2,2355.2,3.21417769]
[1725565566952,0.664,2356.2,2355.2,3.21417769]
[1725565567244,0.664,2356.2,2355.2,0.00637769]
[1725565567448,3.8718,2356.2,2355.2,0.00637769]
[1725565567635,0.42454,2355.8,2355.2,0.00637769]
[1725565567839,3.2078,2355.9,2355.2,0.00637769]
[1725565568041,3.2078,2355.6,2355.2,0.00637769]
[1725565568346,0.42466,2355.2,2354.3,0.4248]
[1725565568550,3.63244,2355.3,2354.4,0.42479]
[1725565568851,0.664,2355.2,2354.1,3.2078]
[1725565569149,0.664,2355.2,2354.4,0.43116769]
[1725565569150,0.00637769,2354.9,2354.4,0.43116769]
[1725565569448,0.00637769,2354.9,2354.8,0.42472]
[1725565569641,0.00637769,2354.9,2354.7,0.42473]
[1725565569841,0.00637769,2354.9,2354.8,0.42472]
[1725565570241,0.00637769,2354.9,2354.8,4.67112]
[1725565570541,10.25277769,2354.9,2354.4,0.00637769]
[1725565570748,0.00637769,2354.9,2354.4,0.43116769]
[1725565571147,0.00637769,2354.9,2354.6,3.2078]
[1725565571349,0.00637769,2354.9,2354.5,3.63256]
[1725565571553,0.00637769,2354.9,2354.5,3.2078]
[1725565571950,0.00637769,2354.9,2354.6,0.42474]
[1725565572147,0.00637769,2354.9,2354.5,3.2078]
[1725565572352,0.00637769,2354.9,2354.8,0.42472]
[1725565572551,0.00637769,2354.9,2354.8,3.63252]
[1725565572743,0.00637769,2354.9,2354.8,7.87892]
[1725565573050,0.42454,2355.9,2355.0,0.42468]
[1725565573250,0.42454,2355.9,2355.1,3.2078]
[1725565573442,1.10742,2356.0,2355.1,0.42467]
[1725565573648,0.6829,2356.0,2355.2,0.42465]
[1725565574040,1.10741,2356.0,2355.2,0.42465]
[1725565574244,0.6829,2356.0,2355.2,0.42465]
[1725565574447,0.42454,2355.9,2355.2,3.2078]
[1725565575051,0.6829,2356.0,2355.2,3.2078]
[1725565575457,3.2078,2356.3,2355.2,3.2078]
[1725565575660,1.06086,2357.0,2355.5,3.2078]
[1725565575661,0.42441,2356.6,2355.5,3.2078]
[1725565575952,4.31989,2356.7,2356.0,0.42451]
[1725565576158,3.8955,2356.7,2355.8,0.00637769]
[1725565576342,3.2078,2356.3,2355.8,0.00637769]
[1725565576548,3.63232,2355.9,2355.8,0.00637769]
[1725565576853,7.68170714,2356.2,2355.8,0.00637769]
[1725565577051,4.2448,2356.1,2355.8,0.00637769]
[1725565577250,3.2078,2356.5,2355.9,0.42451]
[1725565577449,0.42448,2356.2,2355.8,0.00637769]
[1725565577746,7.4518,2356.5,2355.8,0.00637769]
[1725565577747,0.42452,2355.9,2355.8,0.00637769]
[1725565577952,3.2078,2356.1,2355.8,0.00637769]
[1725565578150,0.42452,2355.9,2355.8,0.00637769]
[1725565578346,4.9325,2356.0,2355.8,0.00637769]
[1725565578859,3.2078,2356.4,2355.8,0.00637769]
[1725565579041,0.42451,2356.1,2355.8,0.00637769]
[1725565579246,0.42452,2355.9,2355.8,0.00637769]
[1725565579450,4.66932,2355.9,2355.8,0.00637769]
[1725565579855,4.2448,2355.9,2355.8,0.00637769]
[1725565580244,10.2448,2355.9,2355.8,0.00637769]
[1725565580748,10.66932,2355.9,2355.8,0.00637769]
[1725565581057,0.42449,2356.2,2355.8,0.43091769]
[1725565581249,0.6756,2356.4,2355.8,0.00637769]
[1725565581453,0.4245,2356.1,2355.8,0.00637769]
[1725565581651,0.42452,2355.9,2355.8,0.00637769]
[1725565581951,3.2078,2356.2,2355.8,3.21417769]
[1725565582146,3.2078,2356.2,2356.1,0.42449]
[1725565582546,0.6078,2356.8,2356.4,0.42443]
[1725565582547,0.42439,2356.7,2356.4,0.42443]
[1725565582746,4.66759,2356.7,2356.4,0.42443]
[1725565583260,4.66759,2356.7,2356.1,3.2078]
[1725565583261,0.42437,2356.8,2356.5,0.42441]
[1725565583457,4.95272,2357.1,2356.4,0.42442]
[1725565583458,0.42438,2356.7,2356.4,0.42442]
[1725565583651,0.42438,2356.7,2355.8,0.43090769]
[1725565583652,0.4245,2356.1,2355.8,0.43090769]
[1725565583855,0.42446,2356.3,2355.8,0.00637769]
[1725565584059,1.66804,2356.6,2356.0,0.4245]
[1725565584359,0.42443,2356.4,2356.1,0.42449]
[1725565584561,3.63204,2357.5,2357.3,0.42427]
[1725565584762,3.2078,2357.5,2357.2,0.00636254]
[1725565585058,3.2078,2357.5,2357.4,0.42425]
[1725565585361,0.42422,2357.6,2357.3,0.42426]
[1725565585560,0.42421,2357.7,2357.3,0.42426]
[1725565585756,3.2078,2358.0,2357.2,0.00636254]
[1725565585956,0.42425,2357.5,2357.2,0.00636254]
[1725565586254,4.26829,2357.8,2357.5,0.42424]
[1725565586255,0.42419,2357.8,2357.5,0.42424]
[1725565586460,3.2078,2358.1,2357.4,0.42425]
[1725565586655,0.42417,2357.9,2357.6,0.42421]
[1725565586857,0.42417,2357.9,2357.5,0.42424]
[1725565587159,1.2911,2358.2,2357.8,0.42417]
[1725565587351,1.2911,2358.2,2357.4,3.2078]
[1725565587352,0.42413,2358.1,2357.7,0.42419]
[1725565587756,3.2078,2358.4,2358.0,0.42414]
[1725565587956,0.42419,2357.8,2357.2,0.00636254]
[1725565588261,3.2078,2358.0,2357.2,0.00636254]
[1725565588457,3.63199,2357.8,2357.2,0.43065254]
[1725565588657,3.2078,2357.8,2357.2,0.00636254]
[1725565589060,1.11466,2358.0,2357.4,0.42424]
[1725565589255,0.6905,2358.0,2357.5,0.42422]
[1725565589566,0.42419,2357.8,2357.2,0.43064254]
[1725565589763,1.11466,2358.0,2357.2,0.00636254]
[1725565589960,0.42417,2357.9,2357.4,3.63204]
[1725565590158,0.6905,2358.0,2357.4,3.63204]
[1725565590462,0.6905,2358.0,2357.5,3.2078]
[1725565590662,0.34055037,2359.2,2357.6,3.2078]
[1725565590663,3.2078,2358.5,2357.6,3.2078]
[1725565590861,0.42413,2358.2,2357.7,3.632]
[1725565591359,0.42415,2358.0,2357.5,0.42423]
[1725565591559,0.42414,2358.1,2357.6,0.42422]
[1725565591858,0.42416,2358.0,2357.5,3.63203]
[1725565592058,0.42416,2358.0,2357.6,0.42422]
[1725565592253,0.42414,2358.1,2357.7,0.4242]
[1725565592459,3.2078,2358.5,2357.9,0.42416]
[1725565592669,0.42409,2358.4,2358.0,0.42415]
[1725565592867,3.2078,2358.5,2358.2,0.4241]
[1725565593061,3.2078,2358.5,2357.6,1.06055]
[1725565593062,3.2078,2358.5,2358.1,3.2078]
[1725565593462,3.2078,2358.5,2358.3,0.42409]
[1725565593662,3.2078,2358.5,2358.1,3.2078]
[1725565593966,3.2078,2358.5,2357.7,3.2078]
[1725565593967,4.24,2358.4,2357.7,3.2078]
[1725565594264,9.2078,2358.5,2357.7,3.2078]
[1725565594265,3.2078,2358.5,2357.7,3.2078]
[1725565594455,3.2078,2358.5,2358.2,0.42411]
[1725565594661,3.63186,2358.5,2358.1,0.42412]
[1725565594963,3.2078,2358.5,2358.4,0.42407]
[1725565595171,1.72982,2359.3,2357.9,1.06038]
[1725565595172,3.2078,2359.2,2358.3,3.2078]
[1725565595359,0.42399,2358.9,2358.5,0.00636254]
[1725565595866,7.7660384,2359.2,2358.7,3.2078]
[1725565596064,0.67,2359.3,2358.7,3.63181]
[1725565596065,0.42395,2359.1,2358.7,3.63181]
[1725565596264,0.42395,2359.1,2358.5,0.00636254]
[1725565596265,0.42402,2358.8,2358.5,0.00636254]
[1725565596568,0.42403,2358.7,2358.5,0.00636254]
[1725565596761,0.42404,2358.6,2358.5,0.00636254]
[1725565596961,4.26766,2359.2,2358.5,0.43042254]
[1725565597279,4.26766,2359.2,2358.5,3.21416254]
[1725565597280,3.2078,2359.2,2358.5,3.21416254]
[1725565597564,0.67,2359.3,2358.6,3.2078]
[1725565597766,4.82756771,2359.1,2358.5,0.00636254]
[1725565597967,4.26773,2359.0,2358.5,0.00636254]
[1725565598155,0.42404,2358.6,2358.5,0.00636254]
[1725565598560,0.42404,2358.6,2357.8,4.59]
[1725565598561,0.42413,2358.1,2357.8,3.2078]
[1725565598757,1.06019,2358.4,2357.8,3.2078]
[1725565598970,1.2353,2358.5,2357.8,3.2078]
[1725565599170,0.4241,2358.3,2358.0,0.42414]
[1725565599560,4.6649,2358.3,2358.0,0.42414]
[1725565599761,0.43039204,2358.4,2357.9,3.21416254]
[1725565599963,0.00631204,2358.4,2357.9,3.21416254]
[1725565600361,0.4241,2358.3,2358.0,0.42415]
[1725565600866,0.00631204,2358.4,2358.3,0.42409]
[1725565602068,0.00631204,2358.4,2357.9,0.00636254]
[1725565602069,0.42414,2358.1,2357.9,0.00636254]
[1725565602263,4.66495,2358.0,2357.9,0.00636254]
[1725565602463,10.66495,2358.0,2357.9,0.00636254]
[1725565603175,0.43039204,2358.4,2357.9,0.00636254]
[1725565603466,0.42411,2358.2,2357.9,0.00636254]
[1725565603668,0.42414,2358.1,2357.9,0.00636254]
[1725565604069,0.42412,2358.2,2357.9,0.43052254]
[1725565604269,0.00631204,2358.4,2357.9,0.43051254]
[1725565604270,0.42413,2358.1,2357.9,0.43051254]
[1725565604459,0.43040204,2358.4,2358.1,0.42412]
[1725565604664,0.43040204,2358.4,2357.9,0.00636254]
[1725565604665,0.00631204,2358.4,2357.9,0.00636254]
[1725565605167,0.00631204,2358.4,2358.1,3.2078]
[1725565605572,0.00631204,2358.4,2358.2,0.4241]
[1725565605786,0.00631204,2358.4,2358.3,0.42409]
[1725565606670,0.00631204,2358.4,2358.3,4.66409]
[1725565608579,0.6654,2359.5,2358.3,4.66409]
[1725565608580,3.2078,2359.6,2358.9,0.42398]
[1725565608782,0.42389,2359.5,2358.8,3.2078]
[1725565608978,2.63167,2359.9,2359.1,3.2078]
[1725565609282,0.42379,2360.0,2359.4,3.2078]
[1725565609579,0.42379,2360.0,2359.5,0.00636254]
[1725565609580,0.4238,2360.0,2359.5,0.00636254]
[1725565609772,1.2392,2360.2,2359.5,0.00636254]
[1725565610077,0.42386,2359.6,2359.5,0.00636254]
[1725565610268,4.2384,2359.6,2359.5,0.00636254]
[1725565610474,7.92424078,2360.1,2359.5,0.00636254]
[1725565610475,0.42379,2360.0,2359.5,0.00636254]
[1725565610775,0.42378,2360.1,2359.5,0.43023254]
[1725565610972,0.42378,2360.1,2359.6,0.42386]
[1725565611173,3.2078,2360.4,2359.8,0.42382]
[1725565611477,0.6073,2360.7,2360.0,0.42377]
[1725565611478,3.8151,2360.7,2360.0,0.42377]
[1725565611772,3.8151,2360.7,2360.0,3.2078]
[1725565611973,0.4237,2360.5,2360.0,3.63158]
[1725565612274,0.51661063,2360.8,2360.1,7.7978]
[1725565612473,0.51661063,2360.8,2360.5,0.42369]
[1725565612676,0.51661063,2360.8,2360.4,3.2078]
[1725565612872,4.75261063,2360.8,2360.0,3.2078]
[1725565613173,3.72441063,2360.8,2360.0,3.2078]
[1725565613365,0.42374,2360.3,2360.0,3.2078]
[1725565613570,4.69200762,2360.7,2360.0,3.2078]
[1725565613571,5.75119762,2360.7,2360.0,3.2078]
[1725565613765,4.69200762,2360.7,2360.0,3.2078]
[1725565613978,0.42372,2360.4,2360.0,3.2078]
[1725565614177,0.42371,2360.5,2360.0,3.2078]
[1725565614581,0.4237,2360.5,2360.0,3.2078]
[1725565615075,1.81601063,2360.8,2360.0,3.2078]
[1725565615279,1.81601063,2360.8,2360.0,3.63158]
[1725565615571,0.42369,2360.6,2360.0,3.2078]
[1725565615772,0.42373,2360.4,2360.0,3.2078]
[1725565615975,0.81601063,2360.8,2360.0,3.2078]
[1725565615976,0.42376,2360.2,2360.0,3.2078]
[1725565616179,1.05921,2360.6,2359.7,3.2078]
[1725565616366,0.42377,2360.1,2359.7,3.63164]
[1725565616570,0.42376,2360.2,2359.7,3.63164]
[1725565616776,0.42377,2360.1,2359.7,3.2078]
[1725565617579,4.75447523,2360.5,2359.6,1.3567]
[1725565617580,0.42383,2359.8,2359.6,1.3567]
[1725565617776,3.2078,2360.3,2359.6,1.3567]
[1725565617777,0.42384,2359.7,2359.6,0.6768]
[1725565618382,1.48352,2359.6,2359.5,0.00636254]
[1725565618682,4.66226,2359.6,2359.5,0.00636254]
[1725565618981,10.66226,2359.6,2359.5,0.00636254]
[1725565619476,10.66226,2359.6,2359.1,3.2078]
[1725565619477,0.42392,2359.3,2359.1,3.2078]
[1725565619678,1.66676,2359.9,2359.1,3.2078]
[1725565619679,0.4239,2359.4,2359.1,3.63175]
[1725565619881,0.42389,2359.5,2359.2,0.42393]
[1725565620071,0.42389,2359.5,2359.1,3.2078]
[1725565620072,0.4239,2359.4,2359.1,3.2078]
[1725565620472,0.00636254,2359.5,2359.1,3.2078]
[1725565620675,0.42393,2359.2,2359.0,0.00636254]
[1725565620873,0.42393,2359.2,2358.4,3.2078]
[1725565620874,0.42405,2358.6,2358.4,3.2078]
[1725565621075,0.42406,2358.5,2358.4,3.2078]
[1725565621271,1.06003,2358.8,2357.9,4.4842]
[1725565621684,7.85275584,2358.9,2357.9,4.4842]
[1725565621685,0.42412,2358.2,2357.9,4.4842]
[1725565621872,0.42413,2358.1,2358.0,3.2078]
[1725565622077,0.00636254,2358.3,2357.8,0.00636254]
[1725565622880,0.42416,2358.0,2357.8,0.00636254]
[1725565623584,0.00636254,2358.3,2358.2,0.42411]
[1725565624082,0.00636254,2358.3,2358.1,0.42412]
[1725565624288,0.00636254,2358.3,2358.2,3.63191]
[1725565624580,0.00636254,2358.3,2358.2,13.87271]
[1725565624785,0.8758,2359.5,2358.3,0.42409]
[1725565624786,3.2078,2359.3,2358.3,0.42409]
[1725565625084,3.2078,2359.3,2358.2,3.2078]
[1725565625085,4.88534408,2359.2,2358.2,3.2078]
[1725565625378,3.2078,2358.7,2358.1,0.6974]
[1725565625580,0.42405,2358.6,2358.1,0.6974]
[1725565625884,0.00636254,2358.6,2358.2,0.42411]
[1725565626075,0.43040254,2358.6,2358.1,3.9052]
[1725565626277,0.43040254,2358.6,2358.1,0.6974]
[1725565626683,0.00636254,2358.6,2358.1,0.6974]
[1725565626877,0.00636254,2358.6,2358.2,0.4241]
[1725565627080,0.00636254,2358.6,2358.1,0.6974]
[1725565627081,0.00636254,2358.6,2358.3,0.42409]
[1725565627281,0.00636254,2358.6,2358.1,0.6974]
[1725565627477,3.63174,2359.2,2358.6,0.42403]
[1725565627783,3.63174,2359.2,2358.3,3.2078]
[1725565627784,3.2078,2359.2,2358.3,3.2078]
[1725565628082,1.05976,2359.4,2358.1,1.12152]
[1725565628083,0.42403,2358.7,2358.1,1.12152]
[1725565628272,3.2078,2359.2,2358.1,0.6974]
[1725565628473,0.42397,2359.0,2358.2,3.2078]
[1725565628788,3.2078,2359.2,2358.3,4.59]
[1725565628982,1.1861,2359.6,2358.1,1.12152]
[1725565628983,3.2078,2358.9,2358.1,1.12152]
[1725565629287,4.26778,2358.9,2358.1,0.6974]
[1725565629783,4.75159798,2358.8,2358.3,0.42409]
[1725565629981,3.2078,2358.9,2358.4,0.42407]
[1725565630182,0.42401,2358.8,2358.4,0.42407]
[1725565630376,0.42396,2359.1,2358.3,3.2078]
[1725565630681,4.26764,2359.2,2358.2,0.42411]
[1725565630890,4.26779,2358.9,2358.2,0.6303]
[1725565631088,1.06001,2358.8,2358.2,0.6303]
[1725565631280,0.42408,2358.4,2358.2,0.6303]
[1725565631682,5.59000319,2358.8,2358.2,1.05441]
[1725565631986,0.42399,2358.9,2358.5,0.42404]
[1725565632197,3.63174,2359.2,2358.5,3.2078]
[1725565632483,3.2078,2359.2,2358.2,3.8381]
[1725565632691,0.424,2358.9,2358.5,0.42405]
[1725565633188,0.42399,2358.9,2358.5,0.42405]
[1725565633380,1.05988,2359.1,2358.2,3.8381]
[1725565633781,0.42405,2358.6,2358.2,1.0544]
[1725565633988,3.2078,2358.9,2358.2,0.6303]
[1725565634188,3.2078,2358.9,2358.1,1.12152]
[1725565634189,1.0601,2358.6,2358.1,0.6974]
[1725565634377,1.0601,2358.6,2357.8,0.00636254]
[1725565634378,0.42416,2358.0,2357.8,0.00636254]
[1725565634579,0.42414,2358.1,2357.8,0.00636254]
[1725565634778,0.42414,2358.1,2357.8,0.43054254]
[1725565634986,0.42413,2358.1,2357.8,0.43054254]
[1725565635487,0.42412,2358.2,2357.9,0.42416]
[1725565635689,0.42407,2358.4,2358.1,0.42412]
[1725565635989,0.42407,2358.4,2357.8,0.00636254]
[1725565635990,0.42406,2358.6,2358.2,0.42411]
[1725565636180,0.42404,2358.6,2358.3,0.42409]
[1725565636585,0.42401,2358.8,2358.4,0.42406]
[1725565636786,3.2078,2358.9,2358.4,0.42406]
[1725565636787,0.42403,2358.7,2358.4,0.42406]
[1725565637079,3.2078,2358.9,2358.2,0.6387]
[1725565637288,3.2078,2358.9,2357.8,3.21416254]
[1725565637289,3.2078,2358.6,2357.8,0.00636254]
[1725565637591,0.42408,2358.4,2358.1,0.42413]
[1725565637790,0.42408,2358.4,2357.9,0.6387]
[1725565637791,0.42402,2358.7,2358.4,0.42407]
[1725565637984,0.42401,2358.8,2358.5,0.42405]
[1725565638184,4.26754882,2358.9,2358.3,0.42409]
[1725565638185,0.42404,2358.6,2358.3,0.42409]
[1725565638390,3.2078,2358.9,2358.4,0.42407]
[1725565638391,0.424,2358.8,2358.4,0.42407]
[1725565638692,3.6318,2358.9,2358.3,3.2078]
[1725565638987,2.11967882,2359.0,2358.1,0.6397]
[1725565639291,0.42403,2358.7,2358.4,0.42407]
[1725565639792,0.42403,2358.7,2358.3,0.42408]
[1725565639989,2.11967882,2359.0,2358.2,3.2078]
[1725565639990,1.05974882,2359.0,2358.2,3.2078]
[1725565640180,0.42397,2359.0,2358.4,3.2078]
[1725565640379,4.26754882,2359.2,2358.3,0.6953]
[1725565640380,1.0599,2359.1,2358.3,0.6953]
[1725565640580,1.05974882,2359.1,2358.4,0.42407]
[1725565640780,1.05997,2358.9,2358.3,0.6953]
[1725565640985,5.58356422,2359.1,2358.5,0.42405]
[1725565640986,0.42401,2358.8,2358.5,0.42405]
[1725565641185,0.42402,2358.7,2358.3,0.6953]
[1725565641385,0.42407,2358.5,2358.3,0.6953]
[1725565641592,1.06004,2358.8,2358.3,0.6953]
[1725565641792,0.42403,2358.7,2358.4,0.42407]
[1725565642394,1.05974882,2359.0,2358.3,0.6953]
[1725565642583,0.42398,2359.0,2358.7,0.42402]
[1725565643191,1.05989,2359.1,2358.4,3.2078]
[1725565643383,0.42401,2358.8,2358.5,0.42405]
[1725565643583,1.05988,2359.1,2358.5,0.42404]
[1725565643791,0.424,2358.8,2358.5,0.42404]
[1725565643990,1.05999,2358.9,2358.3,0.6953]
[1725565644190,0.42408,2358.4,2358.1,3.63192]
[1725565644495,0.42408,2358.4,2357.9,5.0387]
[1725565644496,0.42403,2358.7,2358.4,0.42407]
[1725565644787,1.62704882,2359.0,2358.5,0.42405]
[1725565644999,2.68698882,2359.0,2358.3,3.2078]
[1725565645290,0.42401,2358.8,2358.5,0.42405]
[1725565645490,1.05994,2359.0,2358.6,0.42403]
[1725565645491,0.424,2358.9,2358.6,0.42403]
[1725565645689,0.42401,2358.8,2358.5,0.42405]
[1725565645884,0.42397,2359.0,2358.7,0.42401]
[1725565646090,0.42396,2359.1,2358.8,0.424]
[1725565646489,2.44827,2359.4,2359.0,4.4]
[1725565646490,1.05974882,2359.4,2359.0,4.4]
[1725565646794,1.05974882,2359.7,2359.0,4.4]
[1725565647101,1.05974882,2359.7,2358.6,5.0402]
[1725565647102,0.4239,2359.4,2359.1,0.00636254]
[1725565647292,0.42389,2359.5,2359.1,0.00636254]
[1725565647495,0.4239,2359.4,2359.1,0.00636254]
[1725565648086,0.42389,2359.5,2359.1,0.00636254]
[1725565648391,0.42391,2359.4,2359.1,0.00636254]
[1725565648590,2.11935882,2359.7,2359.1,0.00636254]
[1725565648897,0.42389,2359.5,2359.1,0.00636254]
[1725565649292,2.11934882,2359.8,2359.1,0.00636254]
[1725565649597,1.48356882,2359.8,2359.3,0.42391]
[1725565649787,1.05974882,2359.9,2359.1,0.00636254]
[1725565649983,0.42393,2359.2,2359.1,0.00636254]
[1725565650195,4.66313,2359.2,2359.1,0.00636254]